[Event "Titled Tuesday Blitz July 18 Late 2023"]
[White "Topalov, Aleksandar"]
[Black "Vaglio Munoz, Jaime"]
[WhiteFideId "925659"]
[BlackFideId "6500145"]
[WhiteElo "2369"]
[BlackElo "2280"]
[Result "1-0"]
[Round "7"]
[TimeControl "180+2"]
[Date "2023.07.18"]
[WhiteClock "0:00:04"]
[BlackClock "0:00:41"]
[Board "136"]

1. b3 {[%clk 0:03:00]}  b5 {[%clk 0:02:57]} 2. e4 {[%clk 0:02:57]}  Bb7 {[%clk 0:02:57]} 3. Bxb5 {[%clk 0:02:57]}  Bxe4 {[%clk 0:02:56]} 4. Nf3 {[%clk 0:02:57]}  c6 {[%clk 0:02:55]} 5. Bc4 {[%clk 0:02:55]}  d5 {[%clk 0:02:55]} 6. Be2 {[%clk 0:02:54]}  Nd7 {[%clk 0:02:54]} 7. O-O {[%clk 0:02:52]}  e5 {[%clk 0:02:53]} 8. Bb2 {[%clk 0:02:51]}  Bd6 {[%clk 0:02:52]} 9. Re1 {[%clk 0:02:48]}  Ngf6 {[%clk 0:02:50]} 10. d3 {[%clk 0:02:41]}  Bg6 {[%clk 0:02:46]} 11. Nxe5 {[%clk 0:02:33]}  Nxe5 {[%clk 0:02:37]} 12. Bf3 {[%clk 0:02:22]}  Nd7 {[%clk 0:02:27]} 13. d4 {[%clk 0:02:22]}  f6 {[%clk 0:02:25]} 14. dxe5 {[%clk 0:02:08]}  fxe5 {[%clk 0:02:26]} 15. Bh5 {[%clk 0:01:58]}  Qf6 {[%clk 0:02:23]} 16. Bxg6+ {[%clk 0:01:42]}  hxg6 {[%clk 0:02:23]} 17. Qg4 {[%clk 0:01:35]}  O-O-O {[%clk 0:02:06]} 18. Nd2 {[%clk 0:01:30]}  Rh4 {[%clk 0:01:56]} 19. Qg3 {[%clk 0:01:24]}  Rf4 {[%clk 0:01:50]} 20. Nf3 {[%clk 0:01:14]}  Rf8 {[%clk 0:01:49]} 21. c4 {[%clk 0:01:10]}  d4 {[%clk 0:01:46]} 22. Rad1 {[%clk 0:01:00]}  c5 {[%clk 0:01:36]} 23. Bc1 {[%clk 0:01:00]}  e4 {[%clk 0:01:28]} 24. Bxf4 {[%clk 0:00:34]}  Bxf4 {[%clk 0:01:26]} 25. Qg4 {[%clk 0:00:33]}  exf3 {[%clk 0:01:24]} 26. Qxf3 {[%clk 0:00:33]}  Bb8 {[%clk 0:01:17]} 27. Qe2 {[%clk 0:00:27]}  Qd6 {[%clk 0:01:08]} 28. g3 {[%clk 0:00:26]}  Nf6 {[%clk 0:01:08]} 29. b4 {[%clk 0:00:19]}  Re8 {[%clk 0:01:04]} 30. Qd3 {[%clk 0:00:16]}  Rxe1+ {[%clk 0:01:03]} 31. Rxe1 {[%clk 0:00:16]}  cxb4 {[%clk 0:01:02]} 32. Qxg6 {[%clk 0:00:14]}  d3 {[%clk 0:00:59]} 33. Rd1 {[%clk 0:00:13]}  Qd4 {[%clk 0:00:53]} 34. Rxd3 {[%clk 0:00:11]}  Qa1+ {[%clk 0:00:51]} 35. Kg2 {[%clk 0:00:11]}  Nd7 {[%clk 0:00:44]} 36. Qe8+ {[%clk 0:00:08]}  Kb7 {[%clk 0:00:44]} 37. Rxd7+ {[%clk 0:00:08]}  Bc7 {[%clk 0:00:44]} 38. Qe4+ {[%clk 0:00:08]}  Kb6 {[%clk 0:00:44]} 39. c5+ {[%clk 0:00:06]}  Kb5 {[%clk 0:00:41]} 40. Rxc7 {[%clk 0:00:05]}  Qxa2 {[%clk 0:00:41]} 41. Rb7+ {[%clk 0:00:05]}  Ka6 {[%clk 0:00:41]} 42. Qc6+ {[%clk 0:00:04]}  Ka5 {[%clk 0:00:41]} 43. Qb5# {[%clk 0:00:04]} 1-0


[Site "https://www.chess.com"]

[Event "Titled Tuesday Blitz July 18 Late 2023"]
[White "Ortega Ruiz, Jose Miguel"]
[Black "Vila Dupla, Aurelio"]
[WhiteFideId "2209713"]
[BlackFideId "2203383"]
[WhiteElo "2349"]
[BlackElo "2225"]
[Result "1-0"]
[Round "7"]
[TimeControl "180+2"]
[Date "2023.07.18"]
[WhiteClock "0:00:05"]
[BlackClock "0:00:00"]
[Board "138"]

1. e4 {[%clk 0:03:00]}  c5 {[%clk 0:02:58]} 2. b4 {[%clk 0:02:59]}  cxb4 {[%clk 0:02:57]} 3. a3 {[%clk 0:02:57]}  e6 {[%clk 0:02:56]} 4. axb4 {[%clk 0:02:57]}  Bxb4 {[%clk 0:02:55]} 5. c3 {[%clk 0:02:58]}  Bf8 {[%clk 0:02:55]} 6. d4 {[%clk 0:02:58]}  d5 {[%clk 0:02:56]} 7. e5 {[%clk 0:02:58]}  Nc6 {[%clk 0:02:56]} 8. Na3 {[%clk 0:02:57]}  Bd7 {[%clk 0:02:49]} 9. Bd3 {[%clk 0:02:56]}  a6 {[%clk 0:02:49]} 10. Nf3 {[%clk 0:02:54]}  h6 {[%clk 0:02:49]} 11. O-O {[%clk 0:02:53]}  Nge7 {[%clk 0:02:48]} 12. c4 {[%clk 0:02:42]}  dxc4 {[%clk 0:02:33]} 13. Nxc4 {[%clk 0:02:41]}  Nd5 {[%clk 0:02:31]} 14. Ba3 {[%clk 0:02:32]}  Bxa3 {[%clk 0:02:28]} 15. Rxa3 {[%clk 0:02:32]}  O-O {[%clk 0:02:26]} 16. Nd6 {[%clk 0:02:31]}  Qe7 {[%clk 0:02:04]} 17. Bb1 {[%clk 0:02:22]}  f5 {[%clk 0:02:02]} 18. Rd3 {[%clk 0:01:36]}  Be8 {[%clk 0:01:58]} 19. Nd2 {[%clk 0:01:34]}  Ncb4 {[%clk 0:01:35]} 20. Rg3 {[%clk 0:01:31]}  Bb5 {[%clk 0:01:34]} 21. Re1 {[%clk 0:01:29]}  f4 {[%clk 0:01:30]} 22. Rg6 {[%clk 0:01:20]}  Be8 {[%clk 0:01:28]} 23. Qg4 {[%clk 0:01:15]}  Nc3 {[%clk 0:01:12]} 24. Rxe6 {[%clk 0:00:59]}  Qd7 {[%clk 0:00:50]} 25. Bf5 {[%clk 0:00:46]}  Rxf5 {[%clk 0:00:39]} 26. Qxf5 {[%clk 0:00:47]}  Bf7 {[%clk 0:00:28]} 27. Nxf7 {[%clk 0:00:14]}  Qxf7 {[%clk 0:00:28]} 28. Qxf7+ {[%clk 0:00:10]}  Kxf7 {[%clk 0:00:28]} 29. Rb6 {[%clk 0:00:11]}  Nd3 {[%clk 0:00:27]} 30. Ra1 {[%clk 0:00:10]}  Ne2+ {[%clk 0:00:21]} 31. Kf1 {[%clk 0:00:09]}  Nxd4 {[%clk 0:00:21]} 32. Rxb7+ {[%clk 0:00:10]}  Kg6 {[%clk 0:00:18]} 33. Rd7 {[%clk 0:00:10]}  Nc2 {[%clk 0:00:15]} 34. Ra2 {[%clk 0:00:09]}  Ncb4 {[%clk 0:00:15]} 35. Ra3 {[%clk 0:00:09]}  Rc8 {[%clk 0:00:15]} 36. Raxd3 {[%clk 0:00:08]}  Nxd3 {[%clk 0:00:14]} 37. Rxd3 {[%clk 0:00:09]}  Rc1+ {[%clk 0:00:14]} 38. Ke2 {[%clk 0:00:10]}  Rc5 {[%clk 0:00:15]} 39. Nf3 {[%clk 0:00:10]}  Kf5 {[%clk 0:00:14]} 40. Rd6 {[%clk 0:00:10]}  g5 {[%clk 0:00:14]} 41. Rxh6 {[%clk 0:00:09]}  g4 {[%clk 0:00:13]} 42. Rh5+ {[%clk 0:00:07]}  Ke6 {[%clk 0:00:12]} 43. Nd4+ {[%clk 0:00:07]}  Kd5 {[%clk 0:00:11]} 44. Nb3 {[%clk 0:00:06]}  Rc2+ {[%clk 0:00:10]} 45. Nd2 {[%clk 0:00:07]}  f3+ {[%clk 0:00:09]} 46. gxf3 {[%clk 0:00:07]}  gxf3+ {[%clk 0:00:10]} 47. Kd3 {[%clk 0:00:07]}  Ra2 {[%clk 0:00:09]} 48. Nxf3 {[%clk 0:00:07]}  Ra3+ {[%clk 0:00:09]} 49. Ke2 {[%clk 0:00:07]}  Ra2+ {[%clk 0:00:09]} 50. Nd2 {[%clk 0:00:08]}  Ra4 {[%clk 0:00:08]} 51. h4 {[%clk 0:00:07]}  Rg4 {[%clk 0:00:08]} 52. f3 {[%clk 0:00:06]}  Rg2+ {[%clk 0:00:08]} 53. Ke3 {[%clk 0:00:06]}  Rg1 {[%clk 0:00:07]} 54. Rg5 {[%clk 0:00:06]}  Re1+ {[%clk 0:00:07]} 55. Kd3 {[%clk 0:00:07]}  a5 {[%clk 0:00:06]} 56. h5 {[%clk 0:00:05]}  Rh1 {[%clk 0:00:06]} 57. f4 {[%clk 0:00:04]}  a4 {[%clk 0:00:06]} 58. Kc2 {[%clk 0:00:05]}  Rh2 {[%clk 0:00:06]} 59. Rg8 {[%clk 0:00:04]}  a3 {[%clk 0:00:05]} 60. Ra8 {[%clk 0:00:05]}  Rxh5 {[%clk 0:00:04]} 61. Rxa3 {[%clk 0:00:05]}  Rh4 {[%clk 0:00:05]} 62. Rf3 {[%clk 0:00:05]}  Ke6 {[%clk 0:00:04]} 63. Kd3 {[%clk 0:00:06]}  Kf5 {[%clk 0:00:04]} 64. Ke3 {[%clk 0:00:06]}  Rh1 {[%clk 0:00:04]} 65. Rf2 {[%clk 0:00:05]}  Re1+ {[%clk 0:00:03]} 66. Re2 {[%clk 0:00:05]}  Rd1 {[%clk 0:00:03]} 67. Nf3 {[%clk 0:00:05]}  Ra1 {[%clk 0:00:00]} 68. Nd4+ {[%clk 0:00:05]} 1-0


[Site "https://www.chess.com"]

[Event "Titled Tuesday Blitz July 18 Late 2023"]
[White "Slovineanu, Viacheslav"]
[Black "Sailer, Mike"]
[WhiteFideId "13900510"]
[BlackFideId "2012901"]
[WhiteElo "2328"]
[BlackElo "2167"]
[Result "1/2-1/2"]
[Round "7"]
[TimeControl "180+2"]
[Date "2023.07.18"]
[WhiteClock "0:00:05"]
[BlackClock "0:00:09"]
[Board "140"]

1. d4 {[%clk 0:03:00]}  d5 {[%clk 0:02:56]} 2. Nf3 {[%clk 0:03:01]}  Nf6 {[%clk 0:02:54]} 3. c4 {[%clk 0:03:01]}  c6 {[%clk 0:02:54]} 4. e3 {[%clk 0:03:02]}  a6 {[%clk 0:02:54]} 5. Nbd2 {[%clk 0:03:01]}  Bf5 {[%clk 0:02:54]} 6. Qb3 {[%clk 0:03:01]}  b5 {[%clk 0:02:53]} 7. cxb5 {[%clk 0:02:59]}  cxb5 {[%clk 0:02:54]} 8. Bd3 {[%clk 0:02:59]}  Bxd3 {[%clk 0:02:53]} 9. Qxd3 {[%clk 0:02:59]}  e6 {[%clk 0:02:54]} 10. Nb3 {[%clk 0:02:59]}  Bb4+ {[%clk 0:02:51]} 11. Bd2 {[%clk 0:02:59]}  Bxd2+ {[%clk 0:02:50]} 12. Qxd2 {[%clk 0:02:57]}  O-O {[%clk 0:02:47]} 13. O-O {[%clk 0:02:54]}  Nbd7 {[%clk 0:02:48]} 14. Rfc1 {[%clk 0:02:42]}  Ne4 {[%clk 0:02:48]} 15. Qa5 {[%clk 0:02:36]}  Nb6 {[%clk 0:02:39]} 16. Nc5 {[%clk 0:02:25]}  Nxc5 {[%clk 0:02:33]} 17. Rxc5 {[%clk 0:02:05]}  Na4 {[%clk 0:02:23]} 18. Qxd8 {[%clk 0:02:03]}  Rfxd8 {[%clk 0:02:23]} 19. Rc2 {[%clk 0:02:02]}  Rac8 {[%clk 0:02:16]} 20. Rac1 {[%clk 0:02:02]}  Rxc2 {[%clk 0:02:09]} 21. Rxc2 {[%clk 0:02:02]}  Nb6 {[%clk 0:01:46]} 22. Kf1 {[%clk 0:01:34]}  Rc8 {[%clk 0:01:44]} 23. Rc5 {[%clk 0:01:34]}  Rxc5 {[%clk 0:01:27]} 24. dxc5 {[%clk 0:01:33]}  Na4 {[%clk 0:01:28]} 25. b4 {[%clk 0:01:29]}  f6 {[%clk 0:01:28]} 26. Nd4 {[%clk 0:01:14]}  Kf7 {[%clk 0:01:26]} 27. Nc6 {[%clk 0:01:08]}  e5 {[%clk 0:00:46]} 28. Nb8 {[%clk 0:01:00]}  a5 {[%clk 0:00:32]} 29. a3 {[%clk 0:00:48]}  axb4 {[%clk 0:00:32]} 30. axb4 {[%clk 0:00:48]}  Ke6 {[%clk 0:00:22]} 31. Ke2 {[%clk 0:00:40]}  Nc3+ {[%clk 0:00:20]} 32. Kd2 {[%clk 0:00:38]}  Na2 {[%clk 0:00:18]} 33. Na6 {[%clk 0:00:38]}  d4 {[%clk 0:00:18]} 34. exd4 {[%clk 0:00:23]}  exd4 {[%clk 0:00:18]} 35. Kd3 {[%clk 0:00:21]}  Kd5 {[%clk 0:00:16]} 36. f4 {[%clk 0:00:13]}  Nc1+ {[%clk 0:00:15]} 37. Kc2 {[%clk 0:00:11]}  Ne2 {[%clk 0:00:15]} 38. Nc7+ {[%clk 0:00:09]}  Kc4 {[%clk 0:00:15]} 39. c6 {[%clk 0:00:09]}  d3+ {[%clk 0:00:15]} 40. Kd2 {[%clk 0:00:09]}  Nd4 {[%clk 0:00:15]} 41. f5 {[%clk 0:00:01]}  Nxc6 {[%clk 0:00:15]} 42. Ne6 {[%clk 0:00:01]}  Nxb4 {[%clk 0:00:14]} 43. Nxg7 {[%clk 0:00:01]}  Nd5 {[%clk 0:00:13]} 44. Ne8 {[%clk 0:00:01]}  b4 {[%clk 0:00:12]} 45. Nd6+ {[%clk 0:00:02]}  Kc5 {[%clk 0:00:13]} 46. Ne8 {[%clk 0:00:02]}  Kd4 {[%clk 0:00:13]} 47. Nd6 {[%clk 0:00:02]}  b3 {[%clk 0:00:12]} 48. Nb5+ {[%clk 0:00:02]}  Kc4 {[%clk 0:00:12]} 49. Na3+ {[%clk 0:00:02]}  Kb4 {[%clk 0:00:13]} 50. Nb1 {[%clk 0:00:02]}  Nf4 {[%clk 0:00:11]} 51. g3 {[%clk 0:00:03]}  Nh5 {[%clk 0:00:05]} 52. Kxd3 {[%clk 0:00:03]}  Ng7 {[%clk 0:00:05]} 53. Ke4 {[%clk 0:00:03]}  Kc4 {[%clk 0:00:05]} 54. g4 {[%clk 0:00:03]}  h6 {[%clk 0:00:05]} 55. h4 {[%clk 0:00:03]}  Ne8 {[%clk 0:00:05]} 56. Kf4 {[%clk 0:00:03]}  Kd3 {[%clk 0:00:05]} 57. g5 {[%clk 0:00:03]}  fxg5+ {[%clk 0:00:05]} 58. hxg5 {[%clk 0:00:03]}  hxg5+ {[%clk 0:00:06]} 59. Kxg5 {[%clk 0:00:04]}  Kc2 {[%clk 0:00:06]} 60. Na3+ {[%clk 0:00:04]}  Kb2 {[%clk 0:00:07]} 61. Nc4+ {[%clk 0:00:05]}  Kc3 {[%clk 0:00:08]} 62. Na3 {[%clk 0:00:05]}  Kb2 {[%clk 0:00:07]} 63. Nc4+ {[%clk 0:00:05]}  Kc3 {[%clk 0:00:08]} 64. Na3 {[%clk 0:00:05]}  Kb2 {[%clk 0:00:09]} 1/2-1/2


[Site "https://www.chess.com"]

[Event "Titled Tuesday Blitz July 18 Late 2023"]
[White "Schuster, Karsten"]
[Black "Vanek, Tomas"]
[WhiteFideId "4611071"]
[BlackFideId "313459"]
[WhiteElo "2322"]
[BlackElo "2162"]
[Result "0-1"]
[Round "7"]
[TimeControl "180+2"]
[Date "2023.07.18"]
[WhiteClock "0:01:12"]
[BlackClock "0:00:49"]
[Board "141"]

1. Nf3 {[%clk 0:03:00]}  e6 {[%clk 0:02:59]} 2. b3 {[%clk 0:03:00]}  f5 {[%clk 0:02:55]} 3. Bb2 {[%clk 0:03:00]}  Nf6 {[%clk 0:02:55]} 4. g3 {[%clk 0:02:56]}  Be7 {[%clk 0:02:50]} 5. Bg2 {[%clk 0:02:56]}  O-O {[%clk 0:02:50]} 6. O-O {[%clk 0:02:56]}  c5 {[%clk 0:02:49]} 7. c4 {[%clk 0:02:55]}  Nc6 {[%clk 0:02:49]} 8. Ne5 {[%clk 0:02:54]}  Nxe5 {[%clk 0:02:48]} 9. Bxe5 {[%clk 0:02:53]}  d6 {[%clk 0:02:48]} 10. Bb2 {[%clk 0:02:53]}  e5 {[%clk 0:02:48]} 11. Nc3 {[%clk 0:02:50]}  Rb8 {[%clk 0:02:46]} 12. Nd5 {[%clk 0:02:50]}  Nxd5 {[%clk 0:02:39]} 13. Bxd5+ {[%clk 0:02:49]}  Kh8 {[%clk 0:02:37]} 14. f4 {[%clk 0:02:49]}  Bf6 {[%clk 0:02:35]} 15. e3 {[%clk 0:01:55]}  e4 {[%clk 0:02:26]} 16. Bxf6 {[%clk 0:01:53]}  Qxf6 {[%clk 0:02:25]} 17. d3 {[%clk 0:01:53]}  Qc3 {[%clk 0:01:32]} 18. dxe4 {[%clk 0:01:43]}  Qxe3+ {[%clk 0:01:32]} 19. Kh1 {[%clk 0:01:41]}  fxe4 {[%clk 0:01:30]} 20. Re1 {[%clk 0:01:41]}  Qc3 {[%clk 0:00:57]} 21. Bxe4 {[%clk 0:01:33]}  b5 {[%clk 0:00:55]} 22. Qxd6 {[%clk 0:01:31]}  Bh3 {[%clk 0:00:54]} 23. Qxc5 {[%clk 0:01:25]}  Rfe8 {[%clk 0:00:52]} 24. Bg2 {[%clk 0:01:12]}  Rxe1+ {[%clk 0:00:49]} 0-1


[Site "https://www.chess.com"]

[Event "Titled Tuesday Blitz July 18 Late 2023"]
[White "Bibasa, Bob"]
[Black "Ricaurte Lopez, Juan Carlos"]
[WhiteFideId "10000240"]
[BlackFideId "3600327"]
[WhiteElo "2417"]
[BlackElo "2136"]
[Result "1-0"]
[Round "7"]
[TimeControl "180+2"]
[Date "2023.07.18"]
[WhiteClock "0:01:21"]
[BlackClock "0:01:12"]
[Board "144"]

1. c4 {[%clk 0:03:00]}  e5 {[%clk 0:02:57]} 2. a3 {[%clk 0:03:00]}  f5 {[%clk 0:02:55]} 3. d4 {[%clk 0:02:57]}  exd4 {[%clk 0:02:52]} 4. Nf3 {[%clk 0:02:55]}  c5 {[%clk 0:02:50]} 5. e3 {[%clk 0:02:50]}  dxe3 {[%clk 0:02:47]} 6. Bxe3 {[%clk 0:02:50]}  Nf6 {[%clk 0:02:46]} 7. Nc3 {[%clk 0:02:49]}  Be7 {[%clk 0:02:42]} 8. Bd3 {[%clk 0:02:46]}  d6 {[%clk 0:02:40]} 9. Qd2 {[%clk 0:02:45]}  O-O {[%clk 0:02:37]} 10. O-O {[%clk 0:02:32]}  Nc6 {[%clk 0:02:37]} 11. Nd5 {[%clk 0:02:12]}  Nxd5 {[%clk 0:02:32]} 12. cxd5 {[%clk 0:02:12]}  Ne5 {[%clk 0:02:27]} 13. Nxe5 {[%clk 0:02:04]}  dxe5 {[%clk 0:02:26]} 14. Bc4 {[%clk 0:02:04]}  Bd6 {[%clk 0:02:21]} 15. f4 {[%clk 0:02:03]}  exf4 {[%clk 0:02:08]} 16. Bxf4 {[%clk 0:02:03]}  a6 {[%clk 0:01:59]} 17. a4 {[%clk 0:02:01]}  Rb8 {[%clk 0:01:57]} 18. a5 {[%clk 0:02:00]}  Bxf4 {[%clk 0:01:54]} 19. Qxf4 {[%clk 0:02:00]}  Bd7 {[%clk 0:01:50]} 20. Rfe1 {[%clk 0:01:55]}  Bb5 {[%clk 0:01:45]} 21. d6+ {[%clk 0:01:49]}  Kh8 {[%clk 0:01:42]} 22. Bxb5 {[%clk 0:01:35]}  axb5 {[%clk 0:01:41]} 23. Qe5 {[%clk 0:01:34]}  Qf6 {[%clk 0:01:35]} 24. Qxc5 {[%clk 0:01:30]}  Qxb2 {[%clk 0:01:34]} 25. d7 {[%clk 0:01:24]}  Rbd8 {[%clk 0:01:28]} 26. Rad1 {[%clk 0:01:22]}  b4 {[%clk 0:01:12]} 27. Qxf8+ {[%clk 0:01:21]} 1-0


[Site "https://www.chess.com"]

[Event "Titled Tuesday Blitz July 18 Late 2023"]
[White "Tqebuchava, Zurab"]
[Black "Boor, Carl"]
[WhiteFideId "13601113"]
[BlackFideId "2017008"]
[WhiteElo "2111"]
[BlackElo "2391"]
[Result "0-1"]
[Round "7"]
[TimeControl "180+2"]
[Date "2023.07.18"]
[WhiteClock "0:00:00"]
[BlackClock "0:00:12"]
[Board "145"]

1. e4 {[%clk 0:03:00]}  e5 {[%clk 0:02:59]} 2. Nf3 {[%clk 0:03:00]}  Nf6 {[%clk 0:02:59]} 3. Nc3 {[%clk 0:02:59]}  Nc6 {[%clk 0:02:58]} 4. Bb5 {[%clk 0:02:58]}  Nd4 {[%clk 0:02:58]} 5. Bc4 {[%clk 0:02:54]}  c6 {[%clk 0:02:55]} 6. O-O {[%clk 0:02:46]}  d5 {[%clk 0:02:42]} 7. exd5 {[%clk 0:02:46]}  cxd5 {[%clk 0:02:42]} 8. Bb3 {[%clk 0:02:39]}  Nxb3 {[%clk 0:02:25]} 9. axb3 {[%clk 0:02:39]}  e4 {[%clk 0:02:25]} 10. Nd4 {[%clk 0:02:35]}  Bc5 {[%clk 0:02:24]} 11. Nde2 {[%clk 0:02:18]}  Ng4 {[%clk 0:02:12]} 12. d4 {[%clk 0:02:08]}  exd3 {[%clk 0:01:43]} 13. Qxd3 {[%clk 0:02:07]}  O-O {[%clk 0:01:30]} 14. h3 {[%clk 0:01:39]}  Nf6 {[%clk 0:00:57]} 15. Bg5 {[%clk 0:01:37]}  Be6 {[%clk 0:00:55]} 16. Rad1 {[%clk 0:01:23]}  h6 {[%clk 0:00:54]} 17. Bxf6 {[%clk 0:01:19]}  Qxf6 {[%clk 0:00:52]} 18. Nxd5 {[%clk 0:01:19]}  Qxb2 {[%clk 0:00:45]} 19. Ndf4 {[%clk 0:01:08]}  Rac8 {[%clk 0:00:38]} 20. c4 {[%clk 0:00:51]}  Qf6 {[%clk 0:00:28]} 21. Qg3 {[%clk 0:00:48]}  Rfd8 {[%clk 0:00:20]} 22. Rxd8+ {[%clk 0:00:36]}  Rxd8 {[%clk 0:00:20]} 23. Nh5 {[%clk 0:00:33]}  Qg5 {[%clk 0:00:19]} 24. Qxg5 {[%clk 0:00:28]}  hxg5 {[%clk 0:00:20]} 25. Nhg3 {[%clk 0:00:27]}  Rd3 {[%clk 0:00:20]} 26. Kh2 {[%clk 0:00:23]}  f5 {[%clk 0:00:20]} 27. Nc1 {[%clk 0:00:14]}  Rc3 {[%clk 0:00:18]} 28. Re1 {[%clk 0:00:14]}  Bd7 {[%clk 0:00:18]} 29. Rd1 {[%clk 0:00:12]}  Be6 {[%clk 0:00:15]} 30. Nd3 {[%clk 0:00:12]}  Bd4 {[%clk 0:00:13]} 31. Nc1 {[%clk 0:00:07]}  Be5 {[%clk 0:00:12]} 32. Re1 {[%clk 0:00:05]}  Bxg3+ {[%clk 0:00:12]} 33. fxg3 {[%clk 0:00:05]}  Kf7 {[%clk 0:00:13]} 34. Rd1 {[%clk 0:00:04]}  a5 {[%clk 0:00:11]} 35. Re1 {[%clk 0:00:02]}  g6 {[%clk 0:00:11]} 36. Rd1 {[%clk 0:00:02]}  Kf6 {[%clk 0:00:11]} 37. Re1 {[%clk 0:00:02]}  Bd7 {[%clk 0:00:11]} 38. Rd1 {[%clk 0:00:02]}  Bc6 {[%clk 0:00:12]} 39. Re1 {[%clk 0:00:00]}  Rc2 {[%clk 0:00:12]} 0-1


[Site "https://www.chess.com"]

[Event "Titled Tuesday Blitz July 18 Late 2023"]
[White "Melikhov, Evgeny V."]
[Black "Feliz Dotel, Dewar Bienvenido"]
[WhiteFideId "4122046"]
[BlackFideId "6402801"]
[WhiteElo "2380"]
[BlackElo "2075"]
[Result "0-1"]
[Round "7"]
[TimeControl "180+2"]
[Date "2023.07.18"]
[WhiteClock "0:00:04"]
[BlackClock "0:00:25"]
[Board "146"]

1. d4 {[%clk 0:03:00]}  d5 {[%clk 0:02:58]} 2. c4 {[%clk 0:03:01]}  e6 {[%clk 0:02:58]} 3. Nc3 {[%clk 0:03:01]}  c5 {[%clk 0:02:58]} 4. cxd5 {[%clk 0:03:01]}  exd5 {[%clk 0:02:59]} 5. Nf3 {[%clk 0:03:00]}  Nc6 {[%clk 0:02:59]} 6. g3 {[%clk 0:02:59]}  Nf6 {[%clk 0:02:58]} 7. Bg2 {[%clk 0:02:59]}  Be7 {[%clk 0:02:58]} 8. O-O {[%clk 0:02:59]}  O-O {[%clk 0:02:58]} 9. Bg5 {[%clk 0:02:58]}  c4 {[%clk 0:02:58]} 10. Re1 {[%clk 0:02:55]}  h6 {[%clk 0:02:57]} 11. Bf4 {[%clk 0:02:44]}  a6 {[%clk 0:02:56]} 12. Ne5 {[%clk 0:02:41]}  Be6 {[%clk 0:02:54]} 13. e4 {[%clk 0:02:33]}  dxe4 {[%clk 0:02:52]} 14. Nxc6 {[%clk 0:02:32]}  bxc6 {[%clk 0:02:52]} 15. Nxe4 {[%clk 0:02:30]}  Nxe4 {[%clk 0:02:52]} 16. Bxe4 {[%clk 0:02:29]}  Bd5 {[%clk 0:02:52]} 17. Qf3 {[%clk 0:02:16]}  Re8 {[%clk 0:02:37]} 18. b3 {[%clk 0:02:08]}  cxb3 {[%clk 0:02:34]} 19. axb3 {[%clk 0:02:08]}  Bf6 {[%clk 0:02:34]} 20. Bxd5 {[%clk 0:01:59]}  Qxd5 {[%clk 0:02:34]} 21. Qxd5 {[%clk 0:01:58]}  cxd5 {[%clk 0:02:35]} 22. Be5 {[%clk 0:01:44]}  Be7 {[%clk 0:02:20]} 23. Rec1 {[%clk 0:01:39]}  Bb4 {[%clk 0:02:16]} 24. Rc6 {[%clk 0:01:35]}  a5 {[%clk 0:02:15]} 25. Rb6 {[%clk 0:01:10]}  Rac8 {[%clk 0:02:02]} 26. Rb5 {[%clk 0:01:04]}  Red8 {[%clk 0:01:52]} 27. Bf4 {[%clk 0:00:53]}  Rc2 {[%clk 0:01:49]} 28. Be3 {[%clk 0:00:45]}  Rb2 {[%clk 0:01:40]} 29. Rc1 {[%clk 0:00:42]}  Rxb3 {[%clk 0:01:38]} 30. Rc7 {[%clk 0:00:42]}  a4 {[%clk 0:01:26]} 31. Rbb7 {[%clk 0:00:34]}  Bd6 {[%clk 0:01:13]} 32. Rd7 {[%clk 0:00:12]}  Rxd7 {[%clk 0:01:05]} 33. Rxd7 {[%clk 0:00:11]}  a3 {[%clk 0:00:42]} 34. Rxd6 {[%clk 0:00:12]}  a2 {[%clk 0:00:43]} 35. Ra6 {[%clk 0:00:12]}  Rb1+ {[%clk 0:00:43]} 36. Kg2 {[%clk 0:00:12]}  a1=Q {[%clk 0:00:43]} 37. Rxa1 {[%clk 0:00:12]}  Rxa1 {[%clk 0:00:44]} 38. Kf3 {[%clk 0:00:12]}  f6 {[%clk 0:00:44]} 39. Kf4 {[%clk 0:00:11]}  Kf7 {[%clk 0:00:44]} 40. h4 {[%clk 0:00:11]}  Ra2 {[%clk 0:00:42]} 41. h5 {[%clk 0:00:10]}  g5+ {[%clk 0:00:41]} 42. hxg6+ {[%clk 0:00:10]}  Kxg6 {[%clk 0:00:42]} 43. Kg4 {[%clk 0:00:09]}  h5+ {[%clk 0:00:41]} 44. Kf4 {[%clk 0:00:10]}  Ra1 {[%clk 0:00:39]} 45. Bd2 {[%clk 0:00:07]}  Rd1 {[%clk 0:00:39]} 46. Be3 {[%clk 0:00:07]}  Rd3 {[%clk 0:00:37]} 47. g4 {[%clk 0:00:04]}  h4 {[%clk 0:00:36]} 48. Kf3 {[%clk 0:00:04]}  f5 {[%clk 0:00:26]} 49. g5 {[%clk 0:00:05]}  Rxe3+ {[%clk 0:00:23]} 50. fxe3 {[%clk 0:00:04]}  Kxg5 {[%clk 0:00:24]} 51. Kg2 {[%clk 0:00:05]}  Kg4 {[%clk 0:00:24]} 52. Kh2 {[%clk 0:00:04]}  h3 {[%clk 0:00:24]} 53. Kh1 {[%clk 0:00:04]}  Kf3 {[%clk 0:00:24]} 54. Kh2 {[%clk 0:00:05]}  Kxe3 {[%clk 0:00:25]} 55. Kxh3 {[%clk 0:00:05]}  Kxd4 {[%clk 0:00:25]} 56. Kg3 {[%clk 0:00:04]}  Ke3 {[%clk 0:00:25]} 0-1


[Site "https://www.chess.com"]